bitfinex/quotes_SOLUSD_20241028
["timestamp","ask_amount","ask_price","bid_price","bid_amount"]
[1730087779285,14.0417421,175.62,175.6,23.776884]
[1730087780074,14.0417421,175.61,175.6,23.776884]
[1730087780881,14.0417421,175.62,175.6,23.776884]
[1730087782770,14.0417421,175.61,175.6,23.776884]
[1730087785062,14.0417421,175.62,175.6,23.776884]
[1730087785388,14.0417421,175.63,175.6,23.776884]
[1730087785593,14.0417421,175.62,175.6,23.776884]
[1730087786092,14.0417421,175.61,175.6,23.776884]
[1730087786482,8.9777669,175.61,175.6,23.902374]
[1730087787272,8.9777669,175.61,175.6,23.776884]
[1730087791876,8.9777669,175.62,175.6,23.776884]
[1730087792481,8.9777669,175.61,175.6,23.776884]
[1730087794090,31.0232669,175.61,175.49,22.8078]
[1730087794399,8.9777669,175.55,175.5,8.9777669]
[1730087794692,8.9777669,175.55,175.51,0.1]
[1730087795194,8.9777669,175.53,175.48,8.9777669]
[1730087796287,8.9777669,175.52,175.47,8.9777669]
[1730087797194,8.9777669,175.51,175.48,23.902374]
[1730087797376,8.9777669,175.51,175.48,0.12549]
[1730087797790,8.9777669,175.5,175.48,0.12549]
[1730087797979,8.9777669,175.49,175.44,8.9777669]
[1730087798171,8.9777669,175.47,175.42,8.9777669]
[1730087798493,8.9777669,175.47,175.42,9.0777669]
[1730087798692,8.9777669,175.47,175.42,8.9777669]
[1730087799194,8.9777669,175.47,175.41,21.53757511]
[1730087799387,8.9777669,175.46,175.41,30.51534201]
[1730087800402,8.9777669,175.46,175.42,20.0]
[1730087800600,8.9777669,175.46,175.43,23.902374]
[1730087800786,8.9777669,175.46,175.45,23.902374]
[1730087801103,8.9777669,175.46,175.45,43.902374]
[1730087804096,5.6973,175.52,175.46,20.0]
[1730087804394,8.9777669,175.47,175.46,43.776884]
[1730087807099,8.9777669,175.47,175.46,23.776884]
[1730087807287,8.9777669,175.47,175.46,43.776884]
[1730087808194,6.3656,175.53,175.47,23.776884]
[1730087808404,8.9777669,175.49,175.47,23.776884]
[1730087808993,8.9777669,175.49,175.48,0.12549]
[1730087809704,8.9777669,175.49,175.47,23.776884]
[1730087809907,8.9777669,175.48,175.47,23.776884]
[1730087810109,8.9777669,175.48,175.47,23.902374]
[1730087811710,8.9777669,175.49,175.47,23.902374]
[1730087813215,8.9777669,175.48,175.47,23.902374]
[1730087816915,5.6973,175.52,175.47,23.902374]
[1730087817214,8.9777669,175.49,175.47,23.902374]
[1730087818218,8.9777669,175.48,175.47,23.902374]
[1730087822618,8.9777669,175.48,175.47,23.776884]
[1730087823993,14.6763669,175.48,175.42,0.25098]
[1730087824190,8.9777669,175.45,175.42,44.027864]
[1730087824717,8.9777669,175.45,175.42,43.902374]
[1730087825020,5.6973,175.52,175.42,43.902374]
[1730087825218,8.9777669,175.46,175.42,43.902374]
[1730087825421,8.9777669,175.45,175.42,43.902374]
[1730087828507,8.9777669,175.43,175.41,5.95328491]
[1730087828824,8.9777669,175.42,175.38,6.05409991]
[1730087829617,8.9777669,175.42,175.41,23.902374]
[1730087829921,8.9777669,175.42,175.41,43.902374]
[1730087830823,8.9777669,175.43,175.42,20.0]
[1730087830997,8.9777669,175.43,175.42,43.902374]
[1730087833525,8.9777669,175.43,175.38,5.95409991]
[1730087833826,8.9777669,175.4,175.38,5.95409991]
[1730087834019,8.9777669,175.4,175.39,11.20765519]
[1730087834201,8.9777669,175.4,175.38,5.95409991]
[1730087834896,8.9777669,175.4,175.39,23.902374]
[1730087835299,8.9777669,175.4,175.39,43.902374]
[1730087835524,8.9777669,175.4,175.39,23.902374]
[1730087840909,8.9777669,175.41,175.39,23.902374]
[1730087844230,12.1984,175.46,175.4,0.12549]
[1730087844530,8.9777669,175.47,175.42,0.12549]
[1730087844706,13.21813141,175.46,175.42,0.12549]
[1730087844912,8.9777669,175.44,175.42,0.12549]
[1730087847433,8.9777669,175.46,175.42,0.12549]
[1730087847817,8.9777669,175.47,175.44,0.12549]
[1730087848320,8.9777669,175.46,175.44,0.12549]
[1730087848915,16.5077,175.48,175.44,0.12549]
[1730087849113,8.9777669,175.47,175.44,0.12549]
[1730087849322,8.9777669,175.46,175.44,0.12549]
[1730087851140,8.9777669,175.45,175.43,23.776884]
[1730087851515,8.9777669,175.44,175.37,8.9777669]
[1730087851840,8.9777669,175.42,175.37,8.9777669]
[1730087852335,8.9777669,175.43,175.37,8.9777669]
[1730087852514,8.9777669,175.43,175.38,8.9777669]
[1730087853018,31.1840669,175.48,175.43,23.776884]
[1730087853419,25.4854669,175.48,175.43,23.776884]
[1730087854319,25.4854669,175.48,175.44,0.12549]
[1730087854528,20.7873669,175.5,175.45,23.776884]
[1730087855037,8.9777669,175.5,175.46,20.0]
[1730087855338,8.9777669,175.51,175.46,20.0]
[1730087855525,24.6488669,175.53,175.48,8.9777669]
[1730087855729,6.3133,175.54,175.51,8.9777669]
[1730087856233,6.3133,175.54,175.51,23.776884]
[1730087856620,8.9777669,175.56,175.51,23.776884]
[1730087856820,25.4567669,175.57,175.52,8.9777669]
[1730087857029,8.9777669,175.56,175.51,32.7546509]
[1730087859518,8.9777669,175.58,175.53,8.9777669]
[1730087859723,15.4880669,175.59,175.53,8.9777669]
[1730087859938,8.9777669,175.6,175.54,32.8801409]
[1730087860119,15.4608,175.61,175.57,23.776884]
[1730087860319,24.4385669,175.61,175.57,23.776884]
[1730087860526,15.4608,175.61,175.57,23.776884]
[1730087860821,8.9777669,175.62,175.57,23.776884]
[1730087861747,8.9777669,175.62,175.57,32.7546509]
[1730087862827,8.9777669,175.62,175.58,0.12549]
[1730087863023,14.9940669,175.63,175.58,0.12549]
[1730087863229,14.9940669,175.63,175.59,23.776884]
[1730087863443,6.0163,175.63,175.59,32.7546509]
[1730087863616,15.929,175.7,175.64,23.902374]
[1730087863818,24.9067669,175.7,175.64,32.8801409]
[1730087865231,15.929,175.7,175.64,32.8801409]
[1730087865429,24.9067669,175.7,175.65,8.9777669]
[1730087867457,15.929,175.7,175.66,23.776884]
[1730087867626,8.9777669,175.71,175.66,23.776884]
[1730087867944,8.9777669,175.71,175.66,32.7546509]
[1730087868829,8.9777669,175.71,175.66,23.776884]
[1730087869240,6.3947,175.72,175.66,23.776884]
[1730087869450,8.9777669,175.71,175.66,23.776884]
[1730087870744,8.9777669,175.7,175.66,23.776884]
[1730087872929,8.9777669,175.69,175.66,23.776884]
[1730087873133,8.9777669,175.69,175.65,23.776884]
[1730087873332,8.9777669,175.7,175.65,23.776884]
[1730087873538,8.9777669,175.7,175.65,8.9777669]
[1730087873738,8.9777669,175.7,175.66,23.776884]
[1730087874252,8.9777669,175.7,175.65,23.776884]
[1730087874424,8.9777669,175.7,175.65,8.9777669]
[1730087874620,8.9777669,175.7,175.66,23.776884]
[1730087876038,8.9777669,175.71,175.66,23.776884]
[1730087876635,8.9777669,175.71,175.66,32.7546509]
[1730087876843,15.3724669,175.72,175.67,8.9777669]
[1730087877140,15.909,175.74,175.68,8.9777669]
[1730087877347,24.8867669,175.74,175.69,8.9777669]
[1730087877532,15.909,175.74,175.7,8.9777669]
[1730087878225,8.9777669,175.75,175.7,8.9777669]
[1730087878757,9.574403,175.76,175.7,8.9777669]
[1730087879749,9.574403,175.76,175.71,32.7546509]
[1730087881135,0.5966361,175.76,175.72,8.9777669]
[1730087881534,9.574403,175.76,175.71,23.776884]
[1730087881738,9.574403,175.76,175.72,0.12549]
[1730087881961,0.5966361,175.76,175.73,23.776884]
[1730087882436,0.5966361,175.76,175.73,32.7546509]
[1730087883254,0.5966361,175.76,175.74,9.1032569]
[1730087883435,0.5966361,175.76,175.75,52.8801409]
[1730087885139,0.5966361,175.76,175.69,0.12549]
[1730087885343,0.5966361,175.76,175.73,43.902374]
[1730087885756,0.5966361,175.76,175.73,52.8801409]
[1730087888260,0.5966361,175.76,175.73,43.776884]
[1730087888566,0.5966361,175.76,175.73,52.7546509]
[1730087888740,0.5966361,175.76,175.73,43.776884]
[1730087890445,0.5966361,175.76,175.69,0.12549]
[1730087890446,8.9777669,175.75,175.69,0.12549]
[1730087890655,8.9777669,175.74,175.7,0.12549]
[1730087890968,0.5966361,175.76,175.72,8.9777669]
[1730087891141,0.5966361,175.76,175.73,32.8801409]
[1730087891468,0.5966361,175.76,175.75,32.8801409]
[1730087892135,0.5966361,175.76,175.75,52.8801409]
[1730087894253,0.5966361,175.76,175.75,43.902374]
[1730087895873,0.5966361,175.76,175.72,8.9777669]
[1730087896165,0.5966361,175.76,175.73,23.902374]
[1730087897370,0.5966361,175.76,175.73,32.8801409]
[1730087898371,0.5966361,175.76,175.73,23.902374]
[1730087900155,0.5966361,175.76,175.68,15.2882]
[1730087900156,8.9777669,175.74,175.68,15.2882]
[1730087900475,8.9777669,175.74,175.69,8.9777669]
[1730087900973,0.5966361,175.76,175.69,8.9777669]
[1730087901175,0.5966361,175.76,175.72,8.9777669]
[1730087901474,0.5966361,175.76,175.73,0.12549]
[1730087901769,8.9777669,175.75,175.73,0.12549]
[1730087904071,0.5966361,175.76,175.75,0.12549]
[1730087908467,9.574403,175.76,175.65,0.1]
[1730087908675,8.9777669,175.73,175.69,20.0]
[1730087909978,8.9777669,175.73,175.7,23.902374]
[1730087911263,8.9777669,175.71,175.7,23.776884]
[1730087911450,8.9777669,175.71,175.65,8.9777669]
[1730087911653,8.9777669,175.7,175.64,8.9777669]
[1730087912756,8.9777669,175.7,175.65,44.027864]
[1730087913571,8.9777669,175.7,175.65,53.0056309]
[1730087914352,0.5966361,175.76,175.7,44.027864]
[1730087914563,0.5966361,175.76,175.75,23.902374]
[1730087914781,0.5966361,175.76,175.75,43.902374]
[1730087915651,9.574403,175.76,175.75,23.776884]
[1730087916479,0.5966361,175.76,175.75,23.776884]
[1730087920564,14.6022677,175.76,175.72,0.12549]
[1730087920753,14.0056316,175.74,175.64,0.2]
[1730087920959,14.0056316,175.73,175.67,14.0056316]
[1730087921375,14.0056316,175.73,175.68,14.0056316]
[1730087921597,14.0056316,175.71,175.63,22.19957409]
[1730087921762,14.0056316,175.71,175.65,14.0056316]
[1730087922981,14.0056316,175.71,175.66,24.027864]
[1730087923163,14.0056316,175.71,175.66,0.25098]
[1730087923765,6.4682,175.74,175.66,34.2566116]
[1730087923967,14.0056316,175.72,175.68,0.12549]
[1730087924375,14.0056316,175.71,175.68,0.12549]
[1730087925993,44.027864,175.83,175.71,0.1]
[1730087926284,14.0056316,175.72,175.71,0.1]
[1730087927584,14.0056316,175.72,175.71,5.7911]
[1730087928366,14.0056316,175.72,175.69,0.1]
[1730087928584,14.0056316,175.7,175.69,5.8918]
[1730087928767,14.0056316,175.7,175.69,5.7918]
[1730087930688,14.0056316,175.7,175.69,0.2]
[1730087930879,14.0056316,175.7,175.69,0.1]
[1730087932408,14.0056316,175.7,175.69,0.2]
[1730087932699,14.0056316,175.7,175.69,0.1]
[1730087932991,14.0056316,175.7,175.69,5.8918]
[1730087933772,14.0056316,175.7,175.69,5.7918]
[1730087933972,14.0056316,175.7,175.69,5.8918]
[1730087935689,14.0056316,175.7,175.69,5.7918]
[1730087936089,14.0056316,175.7,175.69,5.8918]
[1730087936587,8.97165554,175.7,175.69,5.8918]
[1730087936989,8.97165554,175.7,175.69,5.7918]
[1730087937181,8.97165554,175.7,175.69,5.8918]
[1730087937795,8.97165554,175.7,175.69,0.2]
[1730087939576,8.97165554,175.7,175.69,5.8918]
[1730087940076,8.81441379,175.7,175.69,5.8918]
[1730087940697,8.81441379,175.7,175.69,5.6918]
[1730087940897,8.81441379,175.7,175.69,5.7918]
[1730087941090,8.81441379,175.7,175.69,5.8918]
[1730087943989,8.81441379,175.7,175.69,5.7918]
[1730087944195,8.81441379,175.7,175.69,5.6918]
[1730087945900,8.81441379,175.7,175.67,0.1]
[1730087945901,8.81441379,175.7,175.68,5.6921]
[1730087946191,8.97165554,175.69,175.68,5.6921]
[1730087946695,8.97165554,175.69,175.66,5.6928]
[1730087947026,8.97165554,175.67,175.65,0.1]
[1730087947293,8.97165554,175.66,175.65,5.7931]
[1730087947879,5.6912,175.71,175.65,5.7931]
[1730087948104,5.6907,175.73,175.66,0.1]
[1730087948399,8.97165554,175.68,175.66,0.1]
[1730087949393,8.97165554,175.68,175.67,5.6924]
[1730087956512,8.97165554,175.68,175.67,5.7924]
[1730087956691,8.97165554,175.69,175.67,5.7924]
[1730087958483,8.97165554,175.7,175.68,0.2]
[1730087958999,8.97165554,175.7,175.68,0.1]
[1730087959310,8.97165554,175.7,175.68,0.2]
[1730087961206,8.97165554,175.69,175.68,0.1]
[1730087962318,8.97165554,175.69,175.68,5.7921]
[1730087963614,5.6905,175.73,175.68,5.8921]
[1730087963916,8.97165554,175.7,175.68,5.7921]
[1730087964096,8.97165554,175.7,175.68,5.8921]
[1730087965810,8.97165554,175.7,175.68,0.2]
[1730087968021,8.97165554,175.7,175.68,5.8918]
[1730087968221,8.97165554,175.69,175.68,5.8918]
[1730087969222,8.97165554,175.69,175.68,5.7918]
[1730087969905,8.97165554,175.69,175.67,0.2]
[1730087970104,8.97165554,175.68,175.67,0.2]
[1730087971125,8.97165554,175.69,175.67,0.2]
[1730087971325,8.97165554,175.69,175.68,5.6921]
[1730087971708,8.97165554,175.69,175.68,5.7921]
[1730087973133,8.97165554,175.69,175.68,0.1]
[1730087973430,8.97165554,175.69,175.68,0.2]
[1730087973609,8.97165554,175.7,175.68,0.2]
[1730087973815,21.1984,175.74,175.68,0.2]
[1730087974028,4.25714638,175.73,175.71,0.1]
[1730087974237,15.2491,175.79,175.72,0.2]
[1730087974535,8.97165554,175.74,175.72,0.2]
[1730087975314,8.97165554,175.74,175.72,5.8905]
[1730087977333,8.97165554,175.74,175.72,5.7905]
[1730087977519,8.97165554,175.74,175.72,5.8905]
[1730087979037,15.2491,175.79,175.75,0.1]
[1730087979229,4.25931505,175.78,175.75,0.1]
[1730087979429,4.25931505,175.77,175.75,0.2]
[1730087979814,8.97165554,175.76,175.74,0.2]
[1730087980013,8.97165554,175.76,175.75,0.1]
[1730087980221,13.2305648,175.76,175.75,0.1]
[1730087980711,13.2305648,175.76,175.75,5.8899]
[1730087981540,4.25890926,175.76,175.75,29.792274]
[1730087981725,8.97165554,175.78,175.77,0.1]
[1730087981925,13.23044541,175.78,175.77,0.1]
[1730087982626,4.25878987,175.78,175.77,0.2]
[1730087982832,4.25878987,175.78,175.77,5.8892]
[1730087983141,8.97165554,175.79,175.77,5.8892]
[1730087984021,4.25721313,175.78,175.77,5.7892]
[1730087984330,8.97165554,175.79,175.77,5.8892]
[1730087985538,8.97165554,175.78,175.73,0.2]
[1730087985718,8.97165554,175.75,175.74,0.1]
[1730087986538,8.97165554,175.75,175.73,5.8905]
[1730087986756,8.97165554,175.75,175.74,0.1]
[1730087987240,8.97165554,175.75,175.74,0.2]
[1730087987736,8.97165554,175.76,175.75,0.1]
[1730087988438,8.97165554,175.78,175.75,0.2]
[1730087989021,8.97165554,175.79,175.76,0.2]
[1730087989434,8.97165554,175.8,175.78,0.1]
[1730087989643,5.6876,175.82,175.77,0.1]
[1730087989644,13.22530829,175.79,175.77,0.2]
[1730087989939,8.97165554,175.79,175.77,5.889]
[1730087990330,8.97165554,175.79,175.78,0.1]
[1730087991221,8.97165554,175.79,175.77,5.789]
[1730087991222,8.97165554,175.79,175.77,5.889]
[1730087991423,8.97165554,175.79,175.78,0.1]
[1730087991622,8.97165554,175.79,175.77,5.789]
[1730087991835,8.97165554,175.79,175.77,5.889]
[1730087992121,8.97165554,175.79,175.77,0.2]
[1730087992317,8.97165554,175.79,175.78,0.1]
[1730087993243,15.9239,175.83,175.78,5.8889]
[1730087993244,8.97165554,175.8,175.78,5.8889]
[1730087993423,8.97165554,175.81,175.79,0.1]
[1730087993738,8.97165554,175.82,175.8,0.1]
[1730087993945,4.25215345,175.81,175.8,0.2]
[1730087994644,4.25215345,175.81,175.8,5.8882]
[1730087995241,8.97165554,175.82,175.8,5.8882]
[1730087995827,8.97165554,175.81,175.8,5.8882]
[1730087996143,8.97165554,175.81,175.8,5.7882]
[1730087996347,8.97165554,175.81,175.8,5.8882]
[1730087996837,8.97165554,175.82,175.81,0.1]
[1730087997035,4.25019296,175.82,175.8,5.8882]
[1730087997350,5.6867,175.85,175.77,8.97165554]
[1730087997351,8.97165554,175.81,175.78,0.1]
[1730087997553,8.97165554,175.79,175.75,0.2]
[1730087997845,6.138,175.82,175.75,0.1]
[1730087998049,8.97165554,175.76,175.74,5.8901]
[1730087998254,6.138,175.82,175.75,0.1]
[1730087998419,4.248855,175.81,175.75,0.1]
[1730087998623,4.248855,175.8,175.75,0.1]
[1730087998840,8.97165554,175.76,175.75,0.1]
[1730088001547,8.97165554,175.76,175.74,5.7901]
[1730088001738,8.97165554,175.75,175.71,0.22549]
[1730088001933,8.97165554,175.72,175.7,0.2]
[1730088002147,8.97165554,175.71,175.7,0.2]
[1730088002741,8.97165554,175.71,175.7,0.1]
[1730088002936,8.97165554,175.71,175.68,0.2]
[1730088003148,8.97165554,175.69,175.68,0.2]
[1730088003343,8.97165554,175.7,175.68,0.2]
[1730088004049,8.97165554,175.69,175.68,0.2]
[1730088004556,8.97165554,175.69,175.68,0.1]
[1730088004731,8.97165554,175.69,175.67,5.8924]
[1730088004931,8.97165554,175.68,175.66,6.02337747]
[1730088005144,5.6918,175.7,175.64,0.1]
[1730088005145,8.97165554,175.67,175.64,0.1]
[1730088005347,8.97165554,175.65,175.64,0.1]
[1730088005651,8.97165554,175.65,175.58,0.1]
[1730088005841,35.88662216,175.68,175.57,15.6126]
[1730088005842,8.97165554,175.59,175.57,0.1]
[1730088006035,15.1351,175.66,175.56,5.696]
[1730088006036,15.1351,175.66,175.58,0.1]
[1730088006239,15.1351,175.66,175.59,0.1]
[1730088006463,15.1351,175.66,175.57,0.1]
[1730088006751,8.97165554,175.58,175.57,0.1]
[1730088006959,8.97165554,175.58,175.55,0.1]
[1730088007137,8.97165554,175.56,175.55,5.8963]
[1730088007332,8.97165554,175.56,175.55,0.2]
[1730088007534,8.97165554,175.56,175.54,5.8967]
[1730088007753,8.97165554,175.55,175.54,5.8967]
[1730088008455,14.0418064,175.55,175.53,14.2418]
[1730088008753,14.0418064,175.54,175.53,14.2418]
[1730088008956,14.0418064,175.54,175.5,5.92905953]
[1730088009133,14.0418064,175.51,175.49,14.2452]
[1730088009332,14.0418064,175.51,175.48,5.7985]
[1730088009333,14.0418064,175.5,175.48,0.1]
[1730088009536,14.0418064,175.49,175.48,0.1]
[1730088010363,14.0418064,175.49,175.45,14.3484]
[1730088010540,14.0418064,175.47,175.46,0.1]
[1730088010745,11.6982,175.53,175.48,0.1]
[1730088010746,6.0009,175.53,175.48,0.1]
[1730088010937,15.6072,175.57,175.48,0.1]
[1730088010938,14.0418064,175.5,175.48,0.2]
[1730088011140,5.696,175.56,175.5,0.1]
[1730088011574,14.0418064,175.53,175.51,0.1]
[1730088011752,14.0418064,175.53,175.51,0.2]
[1730088011958,14.0418064,175.53,175.52,0.1]
[1730088012152,14.0418064,175.54,175.52,0.2]
[1730088012471,14.0418064,175.54,175.52,5.8972]
[1730088012769,14.0418064,175.55,175.52,5.8972]
[1730088012968,14.0418064,175.55,175.53,0.1]
[1730088013173,21.3649,175.61,175.54,0.2]
[1730088013362,14.0418064,175.58,175.55,0.2]
[1730088013973,14.0418064,175.57,175.55,0.2]
[1730088014165,14.0418064,175.57,175.55,0.1]
[1730088014369,14.0418064,175.56,175.55,0.1]
[1730088014882,14.0418064,175.56,175.54,5.8964]
[1730088015174,14.0418064,175.56,175.55,0.1]
[1730088015476,14.0418064,175.56,175.54,5.8964]
[1730088015779,14.0418064,175.55,175.52,14.3433]
[1730088015965,14.0418064,175.53,175.52,14.3433]
[1730088016274,14.0418064,175.53,175.5,0.1]
[1730088016450,14.0418064,175.51,175.5,0.1]
[1730088016646,14.0418064,175.51,175.49,0.2]
[1730088016949,14.0418064,175.51,175.45,20.3921064]
[1730088016950,14.0418064,175.5,175.46,0.1]
[1730088017149,5.6968,175.54,175.47,0.1]
[1730088017663,14.0418064,175.48,175.47,0.2]
[1730088018048,14.0418064,175.49,175.47,0.2]
[1730088018561,14.0418064,175.49,175.47,0.1]
[1730088018768,14.0418064,175.49,175.47,0.2]
[1730088019855,14.0418064,175.48,175.47,0.1]
[1730088020264,14.0418064,175.48,175.46,20.0474]
[1730088020448,14.0418064,175.47,175.46,20.0474]
[1730088020657,14.0418064,175.47,175.46,43.824284]
[1730088021071,14.0418064,175.47,175.46,43.924284]
[1730088021683,14.0418064,175.48,175.47,0.1]
[1730088022275,14.0418064,175.48,175.47,5.6989]
[1730088022664,14.0418064,175.48,175.47,5.8989]
[1730088023677,14.0418064,175.48,175.46,38.125084]
[1730088023873,14.0418064,175.47,175.46,38.125084]
[1730088024049,14.0418064,175.47,175.44,0.1]
[1730088024257,14.0418064,175.45,175.43,5.8002]
[1730088024452,19.7400064,175.5,175.44,0.1]
[1730088024772,14.0418064,175.45,175.44,0.1]
[1730088025657,14.0418064,175.45,175.43,20.0508]
[1730088025983,5.6986,175.48,175.44,0.1]
[1730088026692,14.0418064,175.5,175.44,0.1]
[1730088026861,14.0418064,175.5,175.45,0.1]
[1730088026862,14.0418064,175.47,175.45,0.1]
[1730088027061,14.0418064,175.5,175.47,0.2]
[1730088027261,14.0418064,175.5,175.48,0.1]
[1730088027479,14.0418064,175.5,175.47,0.2]
[1730088027661,14.0418064,175.5,175.48,0.1]
[1730088028070,14.0418064,175.5,175.48,0.2]
[1730088028391,14.0418064,175.51,175.5,0.1]
[1730088028768,14.0418064,175.52,175.5,0.1]
[1730088031800,14.0418064,175.51,175.5,0.1]
[1730088032586,5.6963,175.55,175.5,0.1]
[1730088032587,14.0418064,175.52,175.5,0.1]
[1730088033200,14.0418064,175.51,175.5,0.1]
[1730088033611,14.0418064,175.55,175.51,0.2]
[1730088033808,14.0418064,175.55,175.52,0.1]
[1730088034283,14.0418064,175.56,175.52,0.2]
[1730088034484,14.0418064,175.56,175.53,0.1]
[1730088036101,21.3324,175.6,175.54,0.2]
[1730088036278,14.0418064,175.58,175.55,0.1]
[1730088036680,14.0418064,175.59,175.55,0.1]
[1730088037299,14.0418064,175.59,175.55,5.896]
[1730088037480,14.0418064,175.58,175.55,5.796]
[1730088037681,14.0418064,175.58,175.56,0.1]
[1730088038107,14.0418064,175.57,175.55,14.3409]
[1730088038285,14.0418064,175.56,175.55,14.2409]
[1730088038481,14.0418064,175.56,175.54,0.1]
[1730088039082,14.0418064,175.56,175.53,0.2]
[1730088039290,14.0418064,175.56,175.54,0.1]
[1730088039483,14.0418064,175.56,175.53,5.8969]
[1730088039705,14.0418064,175.57,175.54,0.1]
[1730088040812,37.3098,175.64,175.56,0.1]
[1730088041106,14.0418064,175.6,175.57,0.1]
[1730088041312,14.0418064,175.61,175.57,0.2]
[1730088041491,14.0418064,175.61,175.58,0.1]
[1730088041692,14.0418064,175.6,175.58,0.1]
[1730088042704,5.6941,175.63,175.58,0.1]
[1730088042910,14.0418064,175.6,175.58,0.1]
[1730088043812,14.0418064,175.61,175.58,5.8952]
[1730088044017,6.5349,175.68,175.61,0.1]
[1730088044190,14.0418064,175.65,175.62,0.1]
[1730088044893,6.5349,175.68,175.6,0.1]
[1730088044894,14.0418064,175.63,175.6,0.1]
[1730088045098,14.0418064,175.61,175.6,0.1]
[1730088045318,14.0418064,175.61,175.58,0.1]
[1730088045622,14.0418064,175.59,175.58,0.2]
[1730088046914,14.0418064,175.6,175.59,0.1]
[1730088047807,14.0418064,175.6,175.58,20.1339]
[1730088047998,14.0418064,175.6,175.59,0.1]
[1730088048912,14.0418064,175.6,175.58,14.4385]
[1730088049107,14.0418064,175.59,175.58,14.3385]
[1730088049416,14.0418064,175.59,175.57,0.1]
[1730088049597,14.0418064,175.59,175.47,0.1]
[1730088049598,14.0418064,175.58,175.55,5.8962]
[1730088049795,14.0418064,175.56,175.55,5.8962]
[1730088049996,14.0418064,175.56,175.51,15.9772]
[1730088049997,14.0418064,175.56,175.53,0.1]
[1730088050202,14.0418064,175.54,175.51,0.1]
[1730088050402,14.0418064,175.52,175.51,0.1]
[1730088050624,14.0418064,175.52,175.51,0.2]
[1730088052803,5.6963,175.55,175.51,5.8975]
[1730088053122,14.0418064,175.53,175.51,5.8975]
[1730088053422,14.0418064,175.52,175.51,5.8975]
[1730088054218,14.0418064,175.52,175.51,0.1]
[1730088054398,14.0418064,175.52,175.51,0.2]
[1730088055194,14.0418064,175.52,175.51,0.1]
[1730088055414,14.0418064,175.52,175.51,0.2]
[1730088055614,14.0418064,175.52,175.5,0.2]
[1730088055825,14.0418064,175.52,175.49,19.944]
[1730088055826,14.0418064,175.51,175.49,14.3458]
[1730088056116,14.0418064,175.5,175.47,5.7988]
[1730088056291,14.0418064,175.48,175.46,0.1]
[1730088056496,14.0418064,175.47,175.45,5.7995]
[1730088056697,14.0418064,175.5,175.45,0.1]
[1730088056892,14.0418064,175.5,175.44,0.1]
[1730088057118,14.0418064,175.45,175.44,0.2]
[1730088057505,14.0418064,175.45,175.44,0.1]
[1730088057710,14.0418064,175.45,175.44,0.2]
[1730088058218,14.0418064,175.46,175.45,0.1]
[1730088058416,14.0418064,175.47,175.46,0.1]
[1730088058619,14.0418064,175.48,175.47,0.1]
[1730088059125,14.0418064,175.48,175.46,0.1]
[1730088059299,14.0418064,175.47,175.46,0.1]
[1730088059625,14.0418064,175.47,175.46,0.2]
[1730088060420,14.0418064,175.47,175.44,0.1]
[1730088060617,14.0418064,175.45,175.44,0.1]
[1730088061321,14.0418064,175.45,175.41,0.1]
[1730088061531,14.0418064,175.42,175.4,0.1]
[1730088061825,5.82379,175.49,175.39,0.1]
[1730088061826,14.0418064,175.41,175.39,0.1]
[1730088062124,14.0418064,175.4,175.39,0.1]
[1730088062626,14.0418064,175.4,175.38,0.1]
[1730088062924,14.0418064,175.4,175.39,0.2]
[1730088063223,14.0418064,175.4,175.39,0.1]
[1730088063424,19.7430064,175.4,175.37,0.1]
[1730088063599,14.0418064,175.38,175.36,0.1]
[1730088063796,14.0418064,175.37,175.36,0.1]
[1730088063999,14.0418064,175.37,175.33,0.1]
[1730088064000,14.0418064,175.37,175.34,0.1]
[1730088064216,14.0418064,175.35,175.34,0.2]
[1730088064506,14.0418064,175.35,175.34,0.1]
[1730088064702,14.0418064,175.35,175.33,0.1]
[1730088065016,14.0418064,175.34,175.32,0.1]
[1730088065200,14.0418064,175.33,175.31,0.7966361]